Cogmind - Beta 13 @@@ ROGUE MODE // 2024.07.03 @ 13:13:53 Player: Jazzer Result: Destroyed by WU-M0K(R) with Subdweller Laser Performance ------------- Evolutions (0) 0 Regions Visited (2) 400 Robots Destroyed (28) 140 Value Destroyed (600) 600 Prototype IDs (0) 0 Alien Tech Used (0) 0 Bonus (0) 0 TOTAL SCORE: 1140 Bonus ------- None Cogmind --------- Core Integrity 0/250 Matter 257/300 Energy 100/100 System Corruption 0% Temperature Cool (6) Movement Core (1400) Ox27 Location -10/Subcaves Parts ------- > --- POWER (1) -------- (None) > --- PROPULSION (2) --- (None) > --- UTILITY (2) ------ Huge Storage Unit > --- WEAPON (2) ------- Light Assault Rifle Light Assault Rifle > --- INVENTORY (25) --- Wheel Wheel Compact Wheel Compact Wheel Small Storage Unit Seismic Detector Beam Cannon Beam Cannon Beam Cannon Beam Cannon Beam Cannon Light Assault Rifle Light Assault Rifle Grenade Launcher Peak State ------------ > --- POWER ------------ Light Ion Engine > --- PROPULSION ------- Improved Treads Improved Treads > --- UTILITY ---------- Huge Storage Unit Shield Generator > --- WEAPON ----------- Light Assault Rifle Light Assault Rifle > --- INVENTORY -------- Light Ion Engine Improved Treads Improved Treads Wheel Wheel Compact Wheel Compact Wheel Small Storage Unit Seismic Detector Shield Generator Light Assault Rifle [Rating: 11] Favorites ----------- Power Light Ion Engine Engine Light Ion Engine Propulsion Improved Treads Treads Improved Treads Wheel Wheel Utility Huge Storage Unit Device Seismic Detector Storage Huge Storage Unit Weapon Beam Cannon Energy Cannon Beam Cannon Ballistic Gun Light Assault Rifle Build | -11 -10 -10 ------- Run | Yrd Mat Sub Slots Evolved . | . . . Power . | . . . Propulsion . | . . . Utility . | . . . Weapon . | . . . Parts Attached 23 | 7 11 5 Power 3 | 1 . 2 Engine 3 | 1 . 2 Core . | . . . Reactor . | . . . Propulsion 7 | 2 5 . Treads 4 | . 4 . Leg . | . . . Wheel 3 | 2 1 . Hover . | . . . Flight . | . . . Utility 6 | 2 3 1 Device 4 | 1 2 1 Storage 2 | 1 1 . Processor . | . . . Hackware . | . . . Protection . | . . . Artifact . | . . . Weapon 7 | 2 3 2 Energy Gun . | . . . Energy Cannon 3 | . 3 . Ballistic Gun 4 | 2 . 2 Ballistic Cannon . | . . . Launcher . | . . . Special Weapon . | . . . Impact Weapon . | . . . Slashing Weapon . | . . . Piercing Weapon . | . . . Special Melee Weapon . | . . . Unidentified Prototypes . | . . . Parts Lost 11 | . 4 7 Power 3 | . 1 2 Propulsion 4 | . 2 2 Utility 2 | . 1 1 Weapon 2 | . . 2 Highest Loss Streak 6 | . 1 6 To Critical Strikes . | . . . Average Slot Usage (%) 93 | . 93 92 Engine 9 | . 8 13 Treads 26 | . 27 22 Device 13 | . 13 13 Storage 14 | . 14 14 Energy Cannon 17 | . 16 23 Ballistic Gun 10 | . 11 4 Naked Turns . | . . . Heaviest Build 90 | 11 90 90 Greatest Support 46 | 26 46 46 Greatest Overweight (x) 1 | . 1 1 Average Overweight (x) . | . . 1 Largest Inventory Capacity 25 | 8 25 25 Average Capacity 24 | 7 24 25 Most Carried 20 | 3 20 17 Average Carried 14 | 1 14 16 Final Capacity 25 | 8 25 25 Final Carried 18 | 3 18 14 Class Distribution -------------------- 100% | Mutant Dominant Class ---------------- Mutant | -10/Materials Mutant | -10/Subcaves Resources | -11 -10 -10 ----------- Run | Yrd Mat Sub Matter Collected 501 | 170 321 10 Remotely . | . . . Salvage Created 900 | 17 796 87 Parts 55 | 4 50 1 Haulers Intercepted 1 | . 1 . Recyclers Shooed 1 | . 1 . Parts Field Recycled . | . . . Retrieved Matter . | . . . Parts Self-Destructed . | . . . Prevented . | . . . Kills | -11 -10 -10 ------- Run | Yrd Mat Sub Combat Hostiles Destroyed 23 | . 21 2 Melee 1 | . 1 . Guns 13 | . 13 . Cannons 9 | . 7 2 Classes Destroyed 7 | 1 5 1 Worker 1 | . 1 . Tunneler 1 | 1 . . Hauler 1 | . 1 . Recycler 2 | . 2 . Swarmer 9 | . 9 . Grunt 12 | . 12 . Subdweller 2 | . . 2 Best Kill Streak 5 | 1 5 2 Combat Bots Only 5 | . 5 2 Max Kills in Single Turn 2 | 1 2 1 Gunslinging 1 | . 1 . Exploded . | . . . Melee 1 | . 1 . Uniques/NPCs Destroyed . | . . . Combat | -11 -10 -10 -------- Run | Yrd Mat Sub Hostile Shots Fired 191 | . 126 65 Missed 55 | . 34 21 Damage Taken 1566 | . 720 846 Core 250 | . 98 152 Absorbed by Shields 226 | . 155 71 Core Remaining (%) 100 | 100 . . Volleys Fired 115 | 1 74 40 Largest 2 | 2 2 2 Hottest 120 | 40 120 120 Shots Fired 229 | 2 148 79 Gun 154 | 2 114 38 Cannon 75 | . 34 41 Launcher . | . . . Special . | . . . Kinetic 154 | 2 114 38 Thermal 75 | . 34 41 Explosive . | . . . Electromagnetic . | . . . Robot Hit Streak 23 | 2 11 23 Robot Miss Streak 6 | . 6 1 Penetration Max . | . . . Secondary Targets 3 | . 3 . Max Gunslinging Chain 1 | . 1 . Shots Hit Robots 168 | 2 93 73 Core Hits 46 | 2 40 4 Critical Kills . | . . . Critical Parts Destroyed 1 | . 1 . Critical Strikes 1 | . 1 . Destroy 1 | . 1 . Melee Attacks . | . . . Impact . | . . . Slashing . | . . . Piercing . | . . . Sneak Attacks . | . . . Combat Hostiles . | . . . Follow-up Attacks . | . . . Damage Inflicted 1354 | 15 1063 276 Guns 610 | 15 595 . Cannons 681 | . 405 276 Explosions . | . . . Melee . | . . . Ramming 63 | . 63 . Kinetic 610 | 15 595 . Thermal 681 | . 405 276 Explosive . | . . . Electromagnetic . | . . . Impact . | . . . Slashing . | . . . Piercing . | . . . Highest Corruption . | . . . Average Corruption . | . . . Corruption Purged . | . . . Corruption Blocked . | . . . Overload Shots . | . . . Overflow Damage . | . . . Projectiles . | . . . Explosions . | . . . Melee . | . . . Knockbacks 1 | . 1 . Impact 1 | . 1 . Kinetic . | . . . Secondary . | . . . Self-Inflicted Damage . | . . . Shots . | . . . Rammed 12 | . 12 . Targets Rammed 14 | . 14 . Kicked . | . . . Crushed 2 | . 2 . Highest Temperature 383 | . 383 13 Average Temperature 104 | . 119 7 Received Heat Transfer 410 | . 232 178 Effects 2 | . 2 . Energy Bleed 1 | . 1 . Short Circuit 1 | . 1 . Siege Activations . | . . . Robots Corrupted . | . . . Combat Hostiles . | . . . Parts Fried . | . . . Impact Corruptions . | . . . Robots Melted . | . . . Combat Hostiles . | . . . Parts Melted 2 | . 1 1 Heat Transferred 1443 | . 851 592 Parts Sabotaged . | . . . Parts Stolen . | . . . Parts Stripped . | . . . Power Chain Reactions . | . . . Alert | -11 -10 -10 ------- Run | Yrd Mat Sub Peak Influence 318 | 5 318 . Initial 3 | . 3 . Average 83 | 1 86 . Maximum Alert Level 1 | . 1 . Low Security (%) 83 | 100 82 . Level 1 16 | . 17 . Level 2 . | . . . Level 3 . | . . . Level 4 . | . . . Level 5 . | . . . High Security . | . . . Max Security . | . . . Squads Dispatched 4 | . 4 . Investigation 2 | . 2 . Extermination . | . . . Reinforcement 2 | . 2 . Assault . | . . . Garrison . | . . . Intercept . | . . . Searches Triggered . | . . . Construction Impeded . | . . . Haulers Reinforced . | . . . Active Scanning Responses . | . . . Cargo Convoy Interrupts . | . . . Stealth | -11 -10 -10 --------- Run | Yrd Mat Sub Distress Signals 4 | . 4 . Communications Jammed . | . . . Distress Signals . | . . . Times Spotted 42 | . 39 3 Peak Tracking Total 6 | . 6 2 Tactical Retreats 3 | . 3 . Traps | -11 -10 -10 ------- Run | Yrd Mat Sub Traps Triggered 1 | . 1 . Indirectly . | . . . Trap Hack Attempts . | . . . Triggered . | . . . Disarmed . | . . . Reprogrammed . | . . . Reused . | . . . Traps Extracted . | . . . Installed . | . . . Triggered . | . . . Machines | -11 -10 -10 ---------- Run | Yrd Mat Sub Machines Disabled . | . . . Max in Single Turn . | . . . Machines Repaired . | . . . Machines Dismantled . | . . . Machines Sabotaged . | . . . Overloaded Fab Kills . | . . . Hacking | -11 -10 -10 --------- Run | Yrd Mat Sub Machines Accessed 5 | . 5 . Terminals 5 | . 5 . Fabricators . | . . . Repair Stations . | . . . Recycling Units . | . . . Scanalyzers . | . . . Garrison Access . | . . . Total Hacks 15 | . 15 . Successful 8 | . 8 . Failed 7 | . 7 . Catastrophic 2 | . 2 . Database Lockouts . | . . . Manual 14 | . 14 . Terminals 15 | . 15 . Fabricators . | . . . Repair Stations . | . . . Recycling Units . | . . . Scanalyzers . | . . . Garrison Access . | . . . Terminal Hacks 5 | . 5 . Robot Analysis 2 | . 2 . Terminal Index 1 | . 1 . Unreport Threat 1 | . 1 . Locate Traps 1 | . 1 . Fabricator Hacks . | . . . Repair Station Hacks . | . . . Recycling Unit Hacks . | . . . Scanalyzer . | . . . Garrison Access Hacks . | . . . Unauthorized Hacks 3 | . 3 . Terminals 3 | . 3 . Botnet 3 | . 3 . Fabricators . | . . . Repair Stations . | . . . Recycling Units . | . . . Scanalyzers . | . . . Garrison Access . | . . . Data Cores Recovered . | . . . Used . | . . . Hacking Detections 5 | . 5 . Full Trace Events 2 | . 2 . Feedback Events . | . . . Feedback Blocked . | . . . Robot Schematics Acquired . | . . . Robots Built . | . . . Authchips . | . . . Time . | . . . Total Robot Build Rating . | . . . Part Schematics Acquired . | . . . Parts Built . | . . . Authchips . | . . . Time . | . . . Total Part Build Rating . | . . . Parts Repaired . | . . . Time . | . . . Parts Recycled . | . . . Recycled Matter . | . . . Retrieved Matter . | . . . Retrieved Components . | . . . Parts Scanalyzed . | . . . Part Schematics Acquired . | . . . Parts Damaged . | . . . Bothacking | -11 -10 -10 ------------ Run | Yrd Mat Sub Used RIF Installer . | . . . Robots Hacked . | . . . Non-combat . | . . . Combat . | . . . Robot Hacks Applied . | . . . Relay Couplers Released . | . . . Fabnet Peak Effective % . | . . . Robots Rewired . | . . . Allies Hacked . | . . . Hacks Repelled . | . . . Allies | -11 -10 -10 -------- Run | Yrd Mat Sub Total Allies . | . . . Largest Group . | . . . Highest-Rated Group . | . . . Highest-Rated Ally . | . . . Total Orders . | . . . Ally Attacks . | . . . Total Damage . | . . . Kills . | . . . Allies Corrupted . | . . . Allies Melted . | . . . Intel | -11 -10 -10 ------- Run | Yrd Mat Sub Robot Analysis Total 2 | . 2 . Derelict Logs Recovered . | . . . Drone Launches . | . . . Drone Recoveries . | . . . Exploration | -11 -10 -10 ------------- Run | Yrd Mat Sub Turns Passed 2673 | 60 2309 304 Spaces Moved 976 | 48 860 68 Core 3 | 3 . . Treads 863 | . 795 68 Legs . | . . . Wheels 110 | 45 65 . Hover . | . . . Flight . | . . . Fastest Speed 50 | 50 80 240 Average Speed 222 | 88 228 240 Slowest Speed 240 | 100 240 240 Overloaded Moves . | . . . Propulsion Burnouts . | . . . Robots Hopped . | . . . Cave-ins Triggered . | . . . Exploration Rate (%) 36 | 3 98 7 Regions Visited 2 Branch Regions 1 Pre-discovered Areas . | . . . Known Exits Taken . | . . . Unknown Exits Taken 2 | 1 1 . Scrap Searched . | . . . Spaces Dug . | . . . Terrain Destroyed . | . . . Melee . | . . . Projectile . | . . . AOE . | . . . Terrain Rammed . | . . . Walls Destroyed . | . . . Machines Disabled . | . . . Actions | -11 -10 -10 --------- Run | Yrd Mat Sub Total 1261 | 60 1063 138 Wait 111 | 2 84 25 Move 974 | 47 859 68 Hop . | . . . Pick Up 18 | 3 15 . Fast Attach 11 | 7 4 . Attach 8 | . 4 4 Detach 5 | . 5 . Swap 4 | . 3 1 Drop 1 | . 1 . Fire 115 | 1 74 40 Melee . | . . . Ram . | . . . Kick . | . . . Crush 14 | . 14 . Escape Stasis . | . . . Rewire . | . . . Trap . | . . . Miscellaneous . | . . . Route ------- -11/Scrapyard -10/Materials (discovered 6 exits: [*Mat x3] / [*Min x2] / [*Sub]) -10/Subcaves History --------- Turn | Location | Event 16 | -11/Scrapyard | Discovered new exit (range 15) 61 | -11/Scrapyard | Entered Materials 318 | -10/Materials | Build established: Mutant 393 | -10/Materials | Discovered new exit (range 16) 714 | -10/Materials | Discovered new exit (range 14) 1399 | -10/Materials | Discovered new exit (range 4) 1503 | -10/Materials | Discovered new exit (range 14) 1732 | -10/Materials | Discovered new exit (range 7) 2068 | -10/Materials | Discovered new exit (range 6) 2370 | -10/Materials | Entered Subcaves 2571 | -10/Subcaves | Core integrity fell below 50% 2661 | -10/Subcaves | Core integrity fell below 20% 2674 | -10/Subcaves | Destroyed by WU-M0K(R) with Subdweller Laser Last Messages --------------- particularly susceptible to explosives. 02202_ Connecting with Terminal... 02243_ R-06 Scavenger collects Aluminum Leg. 02246_ R-06 Scavenger collects Ion Engine. LOCATION=UNKNOWN AMBIENT_HEAT=-10 GOAL=ESCAPE 02374_ LZ-WRV(z): "She is not going to be happy we haven't found any suitable candidates yet." 02456_ Sub. Optics melted. 02456_ CF-MRE(R) destroyed. 02471_ ZH-Y6J(R) destroyed. 02491_ Acquired 10 matter. 02576_ Lgt. Ion Engine destroyed. 02608_ Imp. Treads destroyed. 02614_ Beam Cannon destroyed. 02622_ Imp. Treads destroyed. 02630_ Beam Cannon destroyed. 02650_ Shield Generator destroyed. 02664_ Ion Engine destroyed. Map ----- +----------------------------------------------------+ | | | | | | | | | | | ?????????????????????????????????????????????????? | | ?????????????????????????????????????????????????? | | ?????????????????????????????????????????????????? | | ?????????????????????????????????????????????????? | | ?????????????????????????????????????????????????? | | ?????????????????????????????????????????????????? | | ?????????????????????????????????????????????????? | | ?????????????????????????????????????????????????? | | ?????????????????????????????????????????????????? | | ?????????????????????????????????????????????????? | | ?????????????????????????????????????????????????? | | ?????????????????????????????????????????????????? | | ?????????????????????????????????????????????????? | | ?????????????????????????????????????????????????? | | ?????????????????????????????????????????????????? | | ???????????????????#????###??????????????????????? | | ??????????????#????#$?### ##?????????????????????? | | ?????????????## ### # #?????????????????????? | | ?????????????# < R ##??###???????????????? | | ???????????????# #### ##??????????????? | | ?????????????# @ ##?????????????? | | ?????????????????### #### #?????????????? | | ???????????????????## ##???##### ##?????????????? | | ????????????????????##?????????## ##?????????????? | | ??????????????????????????###### #?????????????? | | ??????????????????????????# ## ##?????????????? | | ????????????????????##?##??# #??????????????? | | ??????????????# ## ## ## #??????????????? | | ?????????????? # #####??????????????? | | ?????????????? ##?????????????????? | | ????????????????????## # ##????????????????? | | ???????????????????????# ##???????????????? | | ???????????????????????# ####????????????? | | ???????????????????????# #????????????? | | ???????????????????????# ### # ##????????????? | | ???????????????????????##?## ## ##????????????? | | ??????????????????????????# # #????????????? | | ??????????????????????????# ##? ##????????????? | | ??????????????????????????# ### ##????????????? | | ??????????????????????????##% #????????????? | | ????????????????????????####%& ##????????????? | | ????????????????????????# ! ##???????????? | | ????????????????????????# #???????????? | | ???????????????????????## #???????????? | | ???????????????????????# #???????????? | +----------------------------------------------------+ Best States ------------- Heat Dissipation 25 Energy Generation 10 Energy Capacity 250 Matter Stores 300 Matter Capacity 300 Sight Range 16 Terrain Scan Density 10 Evasion (%) 44 Recoil Reduction 2 Item Schematics ----------------- None Robot Schematics ------------------ None Fabricated ------------ Nothing Alien Tech Used ----------------- None Achievements -------------- None Challenges ------------ None Game ------ Seed GunPulseBuckler Manual? 0 Play Time 00:18:37 Cumulative 303.1 hours Start 2024.07.03 @ 12:56:53 End 2024.07.03 @ 13:13:53 Sessions 1 Manual Loads 0 Difficulty Rogue Special Mode None Game No. 177 Rogue 177 Adventurer 0 Explorer 0 Win Type - Total 2 Types 2/0/0/0/0/0/0/0/0 Lore% 53 Gallery% 63 Achievement% 39 Wizard Run 0 Options --------- Layout 0 ASCII 0 Keyboard 1 Movement Numpad Keybinds 0 Fullscreen 2 Font 18/SmallcapsGlow Map View 76x50 Zoom Use 0% Tactical HUD 1 Map Filters NONE Filters NONE Steam 1 RUN: 40d3f1db-59e2-4743-9d06-a2fa53095bcf